bitfinex/quotes_SOLUSD_20260211
["timestamp","ask_amount","ask_price","bid_price","bid_amount"]
[1770770488323,0.55446877,83.497,83.47,3.73142678]
[1770770489027,0.55446877,83.497,83.47,15.71169044]
[1770770489419,0.55446877,83.497,83.47,12.18026366]
[1770770489724,0.55446877,83.497,83.47,15.71169044]
[1770770492828,47.84,83.508,83.47,0.2]
[1770770492829,0.55446877,83.489,83.47,0.2]
[1770770494132,0.55446877,83.487,83.46,0.2]
[1770770494340,0.5514039,83.485,83.46,0.2]
[1770770495416,0.5514039,83.483,83.46,0.2]
[1770770496637,0.5514039,83.481,83.46,0.2]
[1770770497332,0.5514039,83.479,83.46,0.2]
[1770770497534,0.5514039,83.469,83.46,1e-08]
[1770770497714,0.5514039,83.467,83.46,1e-08]
[1770770500335,0.5514039,83.471,83.46,1e-08]
[1770770501427,0.5514039,83.469,83.46,1e-08]
[1770770502020,0.5514039,83.467,83.46,1e-08]
[1770770502934,11.9808029,83.467,83.46,1e-08]
[1770770503138,0.5514039,83.466,83.46,1e-08]
[1770770504015,0.5514039,83.465,83.46,1e-08]
[1770770504221,47.86,83.464,83.46,1e-08]
[1770770504724,0.5514039,83.463,83.46,1e-08]
[1770770505938,0.5514039,83.463,83.437,0.21786047]
[1770770505939,0.5514039,83.458,83.418,11.98770481]
[1770770506137,0.5514039,83.449,83.419,0.50988908]
[1770770506318,0.5514039,83.449,83.415,0.50988908]
[1770770506518,89.79525196,83.462,83.421,0.50988908]
[1770770506519,47.86,83.453,83.421,0.50988908]
[1770770506735,0.5514039,83.455,83.421,0.50988908]
[1770770506929,47.86,83.452,83.421,0.50988908]
[1770770507128,60.39443073,83.452,83.423,0.50988908]
[1770770507436,0.5514039,83.451,83.423,0.50988908]
[1770770508625,0.5514039,83.449,83.423,0.50988908]
[1770770509228,47.88,83.448,83.425,0.50988908]
[1770770509427,0.5514039,83.447,83.425,0.50988908]
[1770770511142,0.56367661,83.445,83.414,0.51618113]
[1770770511342,0.56367661,83.439,83.414,0.51618113]
[1770770511549,0.56367661,83.439,83.41,0.2]
[1770770512348,0.56367661,83.439,83.411,11.98882641]
[1770770512642,0.56367661,83.429,83.41,0.2]
[1770770513444,0.56367661,83.427,83.41,0.2]
[1770770513864,0.56367661,83.419,83.41,1e-08]
[1770770514224,0.56367661,83.425,83.41,1e-08]
[1770770514430,47.88,83.424,83.41,1e-08]
[1770770515027,0.56367661,83.423,83.41,1e-08]
[1770770515458,12.55092218,83.422,83.41,1e-08]
[1770770515935,11.98724557,83.422,83.41,1e-08]
[1770770517355,11.98753296,83.42,83.41,1e-08]
[1770770517850,0.56367661,83.419,83.41,1e-08]
[1770770518447,3.53774549,83.44,83.411,0.51618113]
[1770770518630,59.86480326,83.439,83.411,0.51618113]
[1770770518837,0.56367661,83.438,83.411,0.51618113]
[1770770519639,59.86480326,83.439,83.41,1e-08]
[1770770519640,0.56367661,83.429,83.41,1e-08]
[1770770519840,47.88,83.428,83.41,1e-08]
[1770770520040,0.56367661,83.427,83.41,1e-08]
[1770770520439,47.88,83.426,83.411,0.51618113]
[1770770520840,0.56367661,83.424,83.41,1e-08]
[1770770521143,0.56367661,83.423,83.41,1e-08]
[1770770521356,0.56367661,83.419,83.41,1e-08]
[1770770522551,0.56367661,83.417,83.41,1e-08]
[1770770522748,0.56367661,83.417,83.39,0.2]
[1770770522749,0.56367661,83.415,83.39,0.2]
[1770770522957,0.56367661,83.399,83.39,1e-08]
[1770770523154,0.56367661,83.399,83.381,0.51618113]
[1770770523356,47.9,83.398,83.381,0.51618113]
[1770770524254,11.99083899,83.397,83.381,0.51618113]
[1770770524657,47.9,83.396,83.381,0.51618113]
[1770770525856,47.9,83.396,83.38,0.2]
[1770770526172,0.56367661,83.389,83.37,0.2]
[1770770526383,0.56367661,83.387,83.37,0.2]
[1770770527872,0.56367661,83.379,83.37,0.2]
[1770770528160,0.56367661,83.379,83.37,1e-08]
[1770770528349,0.56367661,83.377,83.37,1e-08]
[1770770529370,0.56367661,83.375,83.37,1e-08]
[1770770529542,47.9,83.374,83.37,1e-08]
[1770770529748,48.46367661,83.374,83.37,1e-08]
[1770770530249,0.56367661,83.373,83.354,0.51618113]
[1770770531268,47.9,83.374,83.354,0.51618113]
[1770770531455,11.99429071,83.373,83.354,0.51618113]
[1770770532674,47.9,83.374,83.354,0.51618113]
[1770770533276,47.9,83.374,83.355,11.99688081]
[1770770533477,11.99260082,83.385,83.361,0.51618113]
[1770770533778,60.47627743,83.385,83.361,0.51618113]
[1770770535978,3.53774549,83.38,83.356,0.51618113]
[1770770536161,0.56367661,83.382,83.356,0.51618113]
[1770770536868,47.92,83.385,83.363,0.51618113]
[1770770537383,48.48367661,83.385,83.363,0.51618113]
[1770770537558,12.55638504,83.384,83.363,0.51618113]
[1770770537765,0.56367661,83.383,83.363,0.51618113]
[1770770539767,0.56367661,83.381,83.353,0.51618113]
[1770770539960,0.56513351,83.38,83.353,0.51618113]
[1770770540271,0.56513351,83.379,83.353,0.51618113]
[1770770540582,0.56513351,83.377,83.353,0.51618113]
[1770770540883,0.56513351,83.375,83.353,0.51618113]
[1770770541374,47.92,83.374,83.353,0.51618113]
[1770770542389,11.99429071,83.373,83.353,0.51618113]
[1770770543110,0.51696288,83.372,83.35,0.2]
[1770770543567,0.51696288,83.372,83.35,0.72306904]
[1770770543763,47.92,83.371,83.351,0.52306904]
[1770770543964,0.51696288,83.37,83.351,0.52306904]
[1770770544562,11.99486619,83.369,83.351,0.52306904]
[1770770544768,12.51182907,83.369,83.351,0.52306904]
[1770770545179,0.51696288,83.368,83.351,0.52306904]
[1770770548880,59.91486619,83.369,83.351,0.52306904]
[1770770550394,11.99486619,83.369,83.351,0.52306904]
[1770770550778,0.51696288,83.369,83.351,0.52306904]
[1770770553395,0.51696288,83.367,83.35,0.2]
[1770770556016,0.51696288,83.365,83.35,0.2]
[1770770559683,0.51696288,83.365,83.35,0.72306904]
[1770770560897,47.94,83.373,83.351,0.52306904]
[1770770560898,0.51696288,83.371,83.351,0.52306904]
[1770770561411,0.51696288,83.372,83.351,0.52306904]
[1770770561808,46.44124996,83.373,83.351,12.52052557]
[1770770562014,6.26578257,83.397,83.361,0.52306904]
[1770770562202,6.26578257,83.397,83.371,0.52306904]
[1770770562408,0.51696288,83.396,83.371,0.52306904]
[1770770563108,0.51696288,83.395,83.371,0.52306904]
[1770770564310,12.50823323,83.394,83.371,0.52306904]
[1770770566614,0.51696288,83.393,83.371,0.52306904]
[1770770568413,11.99155794,83.392,83.371,0.52306904]
[1770770572219,0.54976133,83.403,83.38,3.54276394]
[1770770572418,47.92,83.413,83.381,0.53940438]
[1770770572607,0.54976133,83.412,83.381,0.53940438]
[1770770573414,0.54976133,83.41,83.381,0.53940438]
[1770770575517,0.54976133,83.408,83.383,0.53940438]
[1770770577503,0.54976133,83.406,83.383,0.53940438]
[1770770577807,0.54976133,83.406,83.38,11.99314674]
[1770770578920,11.98968886,83.405,83.38,0.53940438]
[1770770579118,0.54976133,83.404,83.38,0.53940438]
[1770770581023,11.98997637,83.403,83.38,0.53940438]
[1770770581210,0.54976133,83.402,83.38,0.53940438]
[1770770581806,0.54976133,83.402,83.381,0.53940438]
[1770770582011,11.98997637,83.403,83.381,0.53940438]
[1770770582012,11.98936549,83.408,83.382,0.53940438]
[1770770582626,47.92,83.411,83.391,0.53940438]
[1770770583225,11.98724557,83.422,83.391,12.53105682]
[1770770583433,0.54976133,83.421,83.392,0.53940438]
[1770770585529,47.92,83.424,83.401,0.53940438]
[1770770585826,11.98666059,83.427,83.411,0.53940438]
[1770770587310,11.98609612,83.43,83.411,0.53940438]
[1770770589030,0.54976133,83.434,83.411,0.53940438]
[1770770589220,0.54976133,83.434,83.413,0.53940438]
[1770770591519,0.54976133,83.432,83.41,3.54276394]
[1770770592441,0.54976133,83.432,83.41,15.5316859]
[1770770592615,0.54976133,83.432,83.41,16.07109028]
[1770770593818,0.54976133,83.432,83.411,0.53940438]
[1770770595435,11.9852135,83.437,83.411,0.53940438]
[1770770595731,0.54976133,83.436,83.411,0.53940438]
[1770770596446,0.54976133,83.436,83.413,0.53940438]
[1770770598921,0.54976133,83.436,83.42,4.08216832]
[1770770601833,0.54976133,83.436,83.42,0.53940438]
[1770770603134,0.52640701,83.434,83.41,3.54276394]
[1770770603435,0.52640701,83.434,83.41,4.08156229]
[1770770603632,0.52640701,83.434,83.411,11.98880141]
[1770770603943,0.52640701,83.434,83.411,0.53879835]
[1770770604432,0.52640701,83.434,83.41,3.54276394]
[1770770604922,11.98566514,83.433,83.41,3.54276394]
[1770770605124,0.52728648,83.432,83.41,3.54276394]
[1770770606035,0.52728648,83.432,83.411,11.98882641]
[1770770606236,0.50893742,83.429,83.397,0.53879835]
[1770770606715,0.50893742,83.429,83.397,12.52951574]
[1770770606912,0.50893742,83.429,83.398,0.53879835]
[1770770607321,0.5089127,83.427,83.399,11.99055144]
[1770770607530,0.5089127,83.427,83.399,12.52934979]
[1770770607730,0.5089127,83.427,83.399,11.99055144]
[1770770607930,0.5089127,83.427,83.4,0.53879835]
[1770770608132,0.5089127,83.427,83.401,0.53879835]
[1770770610440,11.98667082,83.426,83.401,0.53879835]
[1770770610627,0.50879299,83.425,83.403,0.53879835]
[1770770611434,0.50879299,83.425,83.398,11.99058055]
[1770770611435,0.50879299,83.425,83.398,12.5293789]
[1770770613240,0.50875082,83.423,83.399,0.53879835]
[1770770615429,0.50868729,83.421,83.392,0.53879835]
[1770770615645,41.95535949,83.422,83.386,0.53879835]
[1770770615646,0.50865749,83.419,83.386,0.53879835]
[1770770616351,0.50865749,83.418,83.391,0.53879835]
[1770770616645,41.95535949,83.422,83.391,0.53879835]
[1770770616646,0.50862869,83.416,83.391,0.53879835]
[1770770617028,0.50862869,83.416,83.391,12.53038177]
[1770770617244,0.50862869,83.416,83.401,0.53879835]
[1770770617642,47.9,83.419,83.401,0.53879835]
[1770770618048,0.50860041,83.424,83.401,0.53879835]
[1770770619649,0.50854744,83.459,83.411,0.53879835]
[1770770619850,0.50854744,83.459,83.402,11.99012014]
[1770770619851,0.50854744,83.459,83.431,0.53879835]
[1770770620031,59.88178768,83.46,83.431,0.53879835]
[1770770620449,60.39033512,83.46,83.431,0.53879835]
[1770770620652,0.50851869,83.459,83.431,0.53879835]
[1770770621043,11.98207481,83.458,83.431,0.53879835]
[1770770621244,12.4905935,83.458,83.431,0.53879835]
[1770770621439,6.25790293,83.469,83.402,59.9506007]
[1770770621440,6.25790293,83.469,83.451,0.53879835]
[1770770621958,11.9788856,83.481,83.461,0.53879835]
[1770770622158,11.97821872,83.485,83.461,0.53879835]
[1770770623652,0.1,83.49,83.461,0.53879835]
[1770770623653,12.07748233,83.49,83.461,0.53879835]
[1770770624157,12.07748233,83.49,83.471,0.53879835]
[1770770624650,0.50839034,83.489,83.447,0.53879835]
[1770770624956,12.07748233,83.49,83.461,0.53879835]
[1770770626241,0.60835379,83.49,83.461,0.53879835]
[1770770627148,0.1,83.49,83.481,0.53879835]
[1770770628751,11.97518741,83.506,83.481,0.53879835]
[1770770631152,11.97518741,83.506,83.491,0.56323673]
[1770770632162,0.1,83.51,83.501,0.56323673]
[1770770632840,0.1,83.51,83.457,53.24086188]
[1770770632841,0.62703763,83.51,83.491,0.56323673]
[1770770633260,0.52703763,83.509,83.48,0.56323673]
[1770770633974,0.52703763,83.499,83.471,0.56323673]
[1770770634974,0.52703763,83.497,83.471,0.56323673]
[1770770638360,11.97662163,83.496,83.471,0.56323673]
[1770770638543,0.52703763,83.495,83.471,0.56323673]
[1770770639359,0.52703763,83.495,83.46,4.09769819]
[1770770639539,0.52703763,83.495,83.461,0.56323673]
[1770770640263,0.52703763,83.495,83.462,0.56323673]
[1770770643068,0.52703763,83.493,83.462,0.56323673]
[1770770644345,0.52703763,83.491,83.462,0.56323673]
[1770770649568,0.52703763,83.489,83.462,0.56323673]
[1770770651278,0.52703763,83.487,83.46,3.53446146]
[1770770651480,0.52703763,83.487,83.455,0.56323673]
[1770770652469,0.52703763,83.487,83.45,4.09661891]
[1770770652667,0.52703763,83.479,83.45,0.56323673]
[1770770653270,0.52703763,83.477,83.451,0.56323673]
[1770770657985,0.52703763,83.475,83.451,0.56323673]
[1770770658692,0.52703763,83.469,83.439,12.54793001]
[1770770658887,0.52703763,83.469,83.44,0.56323673]
[1770770659184,0.52703763,83.469,83.441,0.56323673]
[1770770660267,47.86,83.475,83.441,0.56323673]
[1770770660268,0.52153082,83.467,83.441,0.56323673]
[1770770660465,0.52153082,83.459,83.429,0.55304872]
[1770770660672,0.52153082,83.457,83.421,0.55304872]
[1770770661087,3.53338218,83.45,83.421,0.55304872]
[1770770661292,0.52153082,83.449,83.411,0.55304872]
[1770770661592,0.52153082,83.448,83.411,0.55304872]
[1770770662788,0.52153082,83.446,83.411,0.55304872]
[1770770664177,0.54933896,83.444,83.411,0.55304872]
[1770770664582,0.54933896,83.444,83.412,0.56654829]
[1770770664796,0.54933896,83.442,83.412,0.56654829]
[1770770665093,0.54933896,83.439,83.401,0.56654829]
[1770770665690,0.54933896,83.429,83.401,0.56654829]
[1770770666780,47.88,83.438,83.411,0.56654829]
[1770770667587,47.88,83.438,83.421,0.56654829]
[1770770669181,11.98509054,83.437,83.421,0.56654829]
[1770770670699,12.5344295,83.437,83.421,0.56654829]
[1770770670899,0.54933896,83.436,83.411,0.56654829]
[1770770671401,0.54933896,83.434,83.411,0.56654829]
[1770770672989,0.54933896,83.432,83.411,0.56654829]
[1770770674707,0.54933896,83.432,83.401,0.56654829]
[1770770677808,0.54933896,83.43,83.404,0.56654829]
[1770770678197,11.98464559,83.441,83.411,0.56654829]
[1770770678594,11.98464559,83.441,83.421,0.56654829]
[1770770679526,0.54933896,83.443,83.421,0.56654829]
[1770770680917,12.53371133,83.442,83.421,0.56654829]
[1770770683209,0.54933896,83.441,83.421,0.56654829]
[1770770683619,11.98465963,83.44,83.421,0.56654829]
[1770770684825,11.98150056,83.462,83.431,0.56654829]
[1770770685030,11.98150056,83.462,83.422,11.98724557]
[1770770685031,11.98098626,83.466,83.441,0.56654829]
[1770770685527,11.98098626,83.466,83.451,0.56654829]
[1770770685717,11.4054006,83.466,83.451,0.5412684]
[1770770686107,47.9,83.469,83.451,0.5412684]
[1770770686430,11.98063928,83.468,83.451,0.5412684]
[1770770686927,47.9,83.469,83.451,0.5412684]
[1770770687305,11.97978178,83.474,83.451,0.5412684]
[1770770687505,11.97978178,83.474,83.461,0.54305317]
[1770770687728,47.9,83.482,83.461,0.54305317]
[1770770689321,47.9,83.482,83.45,3.53642298]
[1770770689322,0.54933896,83.48,83.45,3.53642298]
[1770770689633,0.54933896,83.48,83.451,0.54394127]
[1770770691022,0.56964697,83.478,83.451,0.54394127]
[1770770691425,0.56964697,83.478,83.46,3.53642298]
[1770770692025,0.56964697,83.476,83.423,29.96759442]
[1770770692207,0.56964697,83.469,83.435,11.98525926]
[1770770692410,0.56964697,83.469,83.435,0.54308138]
[1770770694128,0.56964697,83.467,83.435,0.54308138]
[1770770694638,0.56964697,83.467,83.43,3.53642298]
[1770770694829,89.81223749,83.468,83.426,0.54308138]
[1770770694830,0.56964697,83.459,83.426,0.54308138]
[1770770695133,0.56964697,83.457,83.426,0.54308138]
[1770770695427,0.56964697,83.455,83.43,3.53642298]
[1770770696218,0.56964697,83.455,83.426,0.54308138]
[1770770696219,0.56964697,83.453,83.421,0.54308138]
[1770770696614,0.56964697,83.449,83.421,0.54308138]
[1770770696930,0.56964697,83.448,83.421,0.54308138]
[1770770697920,47.88,83.449,83.43,3.53642298]
[1770770698127,47.88,83.449,83.431,0.54308138]
[1770770698625,11.98351068,83.448,83.431,0.54308138]
[1770770702809,47.88,83.449,83.441,0.54308138]
[1770770703043,0.56964697,83.461,83.441,0.54308138]
[1770770704341,0.56964697,83.459,83.441,0.54308138]
[1770770704715,0.56964697,83.459,83.44,3.53642298]
[1770770706746,11.98065475,83.468,83.442,0.54308138]
[1770770707119,0.56964697,83.467,83.442,0.54308138]
[1770770708552,0.56964697,83.467,83.44,3.53642298]
[1770770708553,0.56964697,83.467,83.444,0.54308138]
[1770770709538,11.97977441,83.475,83.451,0.54308138]
[1770770709727,0.56964697,83.474,83.451,0.54308138]
[1770770711017,11.97992165,83.473,83.451,0.54308138]
[1770770711213,0.56964697,83.472,83.451,0.54308138]
[1770770713442,0.56964697,83.47,83.451,0.54308138]
[1770770715319,0.56964697,83.47,83.434,0.54308138]
[1770770715524,11.98063928,83.468,83.434,0.54308138]
[1770770715748,0.56964697,83.467,83.434,0.54308138]
[1770770718024,11.98092636,83.466,83.435,11.98537783]
[1770770718230,0.56964697,83.465,83.435,12.52845921]
[1770770718637,0.56964697,83.465,83.436,0.54308138]
[1770770719939,0.56964697,83.463,83.436,0.54308138]
[1770770720143,0.56964697,83.463,83.44,3.53642298]
[1770770720961,0.53998764,83.461,83.425,0.53865819]
[1770770721165,0.53998764,83.459,83.424,11.98690925]
[1770770722548,0.53998764,83.459,83.424,12.52556744]
[1770770723268,0.53184315,83.457,83.424,12.52556744]
[1770770723573,0.53184315,83.429,83.307,36.06]
[1770770723748,3.53642298,83.4,83.37,0.7512877]
[1770770723952,0.53184315,83.398,83.37,0.2]
[1770770724154,0.53184315,83.398,83.36,3.53642298]
[1770770724759,0.53184315,83.396,83.36,3.53642298]
[1770770724961,0.53184315,83.389,83.354,0.5512877]
[1770770725348,0.53184315,83.387,83.354,0.5512877]
[1770770725659,0.53184315,83.385,83.354,0.5512877]
[1770770727760,11.99270843,83.384,83.354,0.5512877]
[1770770727966,0.53184315,83.383,83.354,0.5512877]
[1770770728862,3.53642298,83.39,83.35,3.73642298]
[1770770728863,0.53184315,83.401,83.371,0.5512877]
[1770770729174,47.93963443,83.439,83.355,11.99688081]
[1770770729175,11.98767666,83.419,83.39,3.53642298]
[1770770729351,0.53184315,83.424,83.391,0.5512877]
[1770770730171,51.43642298,83.43,83.393,0.5512877]
[1770770730172,0.53184315,83.422,83.393,0.5512877]
[1770770730474,0.53184315,83.419,83.387,0.5512877]
[1770770731280,0.53184315,83.419,83.392,11.99155794]
[1770770731776,0.53184315,83.419,83.393,0.5512877]
[1770770732682,11.98710187,83.423,83.395,0.5512877]
[1770770732968,0.53184315,83.422,83.395,0.5512877]
[1770770733374,0.53184315,83.422,83.39,11.99181186]
[1770770733881,0.53184315,83.419,83.383,0.5512877]
[1770770734178,0.53184315,83.419,83.383,12.54405935]
[1770770734554,0.53184315,83.419,83.384,0.5512877]
[1770770735379,0.53184315,83.417,83.386,0.5512877]
[1770770737677,0.53184315,83.415,83.386,0.5512877]
[1770770740070,0.53184315,83.413,83.381,0.5512877]
[1770770740457,0.53184315,83.409,83.379,0.5512877]
[1770770742068,0.53184315,83.407,83.381,11.99313992]
[1770770742582,0.53184315,83.406,83.381,12.54442762]
[1770770743878,0.53184315,83.404,83.381,0.5512877]
[1770770744280,0.53184315,83.404,83.376,11.99377071]
[1770770744982,11.98997637,83.403,83.376,0.5512877]
[1770770745193,0.53184315,83.402,83.376,0.5512877]
[1770770746295,0.53184315,83.402,83.37,3.53977275]
[1770770746472,0.53184315,83.402,83.371,0.5512877]
[1770770747373,0.53184315,83.399,83.365,0.5512877]
[1770770747567,3.53977275,83.4,83.365,0.5512877]
[1770770747568,0.53184315,83.397,83.365,0.5512877]
[1770770748283,47.9,83.396,83.365,0.5512877]
[1770770748476,0.53184315,83.395,83.365,0.5512877]
[1770770749888,0.53184315,83.393,83.366,11.99529784]
[1770770750587,0.53184315,83.393,83.365,0.5512877]
[1770770750588,0.53814698,83.389,83.348,0.58728577]
[1770770750770,3.53977275,83.38,83.351,0.58728577]
[1770770751692,4.07791973,83.38,83.351,0.58728577]
[1770770751887,0.53814698,83.379,83.351,0.58728577]
[1770770752385,41.97750005,83.378,83.351,0.58728577]
[1770770752588,0.53814698,83.377,83.351,0.58728577]
[1770770754392,11.99385914,83.376,83.351,0.58728577]
[1770770754597,12.53200612,83.376,83.351,0.58728577]
[1770770754792,47.92,83.375,83.351,0.58728577]
[1770770755301,48.45814698,83.375,83.351,0.58728577]
[1770770755883,0.53814698,83.374,83.351,0.58728577]
[1770770756400,3.54261243,83.38,83.34,3.74261243]
[1770770756401,0.53814698,83.369,83.34,0.2]
[1770770756600,0.53814698,83.369,83.347,0.58728577]
[1770770758008,0.53814698,83.369,83.341,0.58728577]
[1770770758207,11.99429071,83.373,83.351,0.58728577]
[1770770758504,47.92,83.368,83.351,0.58728577]
[1770770758689,11.99481179,83.37,83.342,0.58728577]
[1770770758690,0.53814698,83.366,83.342,0.58728577]
[1770770759291,47.92,83.365,83.34,0.2]
[1770770759494,47.92,83.365,83.347,0.58728577]
[1770770760197,48.45814698,83.365,83.347,0.58728577]
[1770770760714,47.92,83.365,83.347,0.58728577]
[1770770761003,47.92,83.365,83.351,0.58728577]
[1770770761194,147.39537256,84.301,83.351,0.58728577]
[1770770761195,47.92,83.386,83.351,0.58728577]
[1770770762687,11.9925646,83.385,83.351,0.58728577]
[1770770763109,0.53814698,83.384,83.353,0.58728577]
[1770770764608,0.53814698,83.379,83.35,0.2]
[1770770764800,0.53814698,83.377,83.35,0.2]
[1770770765609,0.53814698,83.377,83.35,0.78728577]
[1770770766913,0.53814698,83.375,83.35,0.78728577]
[1770770767903,0.53814698,83.375,83.351,0.58728577]
[1770770769409,3.54261243,83.37,83.351,0.58728577]
[1770770769714,4.08075941,83.37,83.351,0.58728577]
[1770770772017,3.54261243,83.38,83.351,0.58728577]
[1770770772517,15.53596957,83.38,83.352,0.58728577]
[1770770773812,11.99270843,83.384,83.353,11.99716866]
[1770770773999,11.99270843,83.384,83.354,0.58728577]
[1770770774205,0.53814698,83.383,83.354,0.58728577]
[1770770774811,3.54261243,83.38,83.354,0.58728577]
[1770770775326,4.08075941,83.38,83.354,0.58728577]
[1770770775706,0.53814698,83.379,83.354,0.58728577]
[1770770776108,11.99357144,83.378,83.354,0.58728577]
[1770770776425,11.99299609,83.382,83.355,0.58728577]
[1770770776648,0.53814698,83.379,83.355,0.58728577]
[1770770778522,0.53814698,83.377,83.355,0.58728577]
[1770770779827,11.99305113,83.382,83.357,0.58728577]
[1770770780327,0.58002061,83.381,83.357,0.58728577]
[1770770780926,0.58002061,83.379,83.357,0.58728577]
[1770770782008,15.53589619,83.38,83.357,0.58728577]
[1770770782218,11.99328376,83.38,83.357,0.58728577]
[1770770782403,11.99250929,83.386,83.361,0.54771335]
[1770770782608,47.92,83.387,83.361,0.54771335]
[1770770783217,59.91233278,83.387,83.363,0.55268615]
[1770770784907,0.53982911,83.386,83.363,0.55268615]
[1770770785730,0.53982911,83.384,83.363,0.55268615]
[1770770788234,0.53982911,83.379,83.353,0.55268615]
[1770770789315,11.99330744,83.38,83.355,0.55268615]
[1770770789636,11.99115856,83.395,83.361,0.55268615]
[1770770791225,0.53982911,83.398,83.363,0.55268615]
[1770770795445,12.5306681,83.397,83.365,0.55268615]
[1770770795835,11.98796408,83.417,83.391,0.55268615]
[1770770797226,11.98695818,83.424,83.393,0.55268615]
[1770770799248,11.98695818,83.424,83.395,0.55268615]
[1770770799552,0.53982911,83.424,83.4,3.54261243]
[1770770799757,0.53982911,83.424,83.401,0.55268615]
[1770770800632,11.98710187,83.423,83.401,0.55268615]
[1770770803349,0.53982911,83.423,83.401,0.55268615]
[1770770803551,0.53982911,83.423,83.394,0.55268615]
[1770770804047,0.53982911,83.419,83.394,0.55268615]
[1770770805134,0.53982911,83.417,83.394,0.55268615]
[1770770806737,0.53982911,83.417,83.388,11.99199491]
[1770770806938,0.53982911,83.417,83.388,12.54468106]
[1770770807138,0.53982911,83.417,83.389,0.55268615]
[1770770807562,0.53982911,83.415,83.389,0.55268615]
[1770770810259,0.5397423,83.413,83.389,0.55268615]
[1770770810755,0.5397423,83.409,83.381,0.55185909]
[1770770810962,0.5397423,83.409,83.351,0.55185909]
[1770770811260,0.5397423,83.399,83.361,0.55185909]
[1770770812268,0.5397423,83.397,83.361,0.55185909]
[1770770815857,0.5397423,83.395,83.361,0.55185909]
[1770770817560,0.5397423,83.395,83.362,0.55185909]
[1770770817744,0.5397423,83.389,83.362,0.55185909]
[1770770817938,0.5397423,83.387,83.362,0.55185909]
[1770770818144,0.5397423,83.399,83.371,0.55185909]
[1770770818452,11.99091382,83.397,83.371,0.55185909]
[1770770818756,0.5397423,83.396,83.371,0.55185909]
[1770770819265,11.99091382,83.397,83.371,0.55185909]
[1770770820166,12.5300062,83.401,83.371,0.55185909]
[1770770820347,0.5397423,83.4,83.371,0.55185909]
[1770770821545,47.92,83.402,83.381,0.55185909]
[1770770822863,11.98897014,83.41,83.381,0.55185909]
[1770770823044,11.98710187,83.423,83.383,0.55185909]
[1770770823368,11.98710187,83.423,83.382,11.99299609]
[1770770823369,0.5397423,83.422,83.391,0.55185909]
[1770770824247,11.98738926,83.421,83.391,0.55185909]
[1770770826367,0.5397423,83.425,83.391,0.55185909]
[1770770826961,0.5397423,83.425,83.392,11.99155794]
[1770770827261,11.98491775,83.439,83.411,0.55185909]
[1770770828169,11.98328722,83.45,83.421,0.55185909]
[1770770828351,0.5397423,83.454,83.423,0.55185909]
[1770770830062,3.53777432,83.45,83.423,0.55185909]
[1770770830259,0.5397423,83.449,83.423,0.55185909]
[1770770831373,0.5397423,83.447,83.423,0.55185909]
[1770770834260,0.5397423,83.447,83.418,11.98777738]
[1770770834261,0.5397423,83.439,83.411,0.55185909]
[1770770835366,0.5397423,83.437,83.411,0.55185909]
[1770770837477,0.5397423,83.437,83.409,11.98904044]
[1770770837478,0.5397423,83.437,83.413,0.55185909]
[1770770837656,0.5397423,83.445,83.413,0.55185909]
[1770770838789,0.5397423,83.445,83.401,0.55185909]
[1770770838790,0.5397423,83.439,83.401,0.55185909]
[1770770841275,11.9849469,83.438,83.402,11.99012014]
[1770770841481,0.58776369,83.437,83.403,0.55483109]
[1770770845683,0.58776369,83.437,83.4,3.53777432]
[1770770845684,11.98398735,83.445,83.421,0.59659665]
[1770770846781,12.52423212,83.445,83.421,0.59659665]
[1770770847469,0.54024477,83.444,83.421,0.59659665]
[1770770848595,0.54024477,83.439,83.401,0.59659665]
[1770770848895,0.54024477,83.439,83.409,0.59659665]
[1770770850390,0.54024477,83.437,83.409,0.59659665]
[1770770852072,12.52470647,83.442,83.411,0.59659665]
[1770770852275,12.52470647,83.442,83.413,0.59659665]
[1770770852580,11.98385755,83.446,83.421,0.59659665]
[1770770854076,11.98385755,83.446,83.422,11.98724557]
[1770770854281,11.98385755,83.446,83.423,0.59659665]
[1770770854684,11.98171364,83.461,83.431,0.59659665]
[1770770854879,11.981357,83.463,83.431,0.59659665]
[1770770856595,11.981357,83.463,83.433,0.59659665]
[1770770856805,0.1,83.47,83.433,0.59659665]
[1770770857000,0.1,83.48,83.462,0.59659665]
[1770770857381,11.97688403,83.495,83.471,0.59659665]
[1770770858604,0.54024477,83.494,83.471,0.59659665]
[1770770858982,0.64024477,83.5,83.471,0.59659665]
[1770770859887,0.54024477,83.49,83.471,0.59659665]
[1770770861600,0.54024477,83.488,83.464,0.59659665]
[1770770863196,11.97791272,83.487,83.464,0.59659665]
[1770770865006,30.48276017,83.494,83.464,0.59659665]
[1770770865190,0.54024477,83.498,83.471,0.59659665]
[1770770866897,0.54024477,83.498,83.472,0.59659665]
[1770770867905,11.97647819,83.497,83.472,0.59659665]
[1770770868410,11.97647819,83.497,83.471,11.98012661]
[1770770868411,11.97647819,83.497,83.474,0.59659665]